Cogmind - Beta 13 @@@ ROGUE MODE // 2024.04.05 @ 19:58:41 Player: Scringis Result: Destroyed by YI-UF0 with YI-UF0's Doublenader Performance ------------- Evolutions (0) 0 Regions Visited (2) 400 Robots Destroyed (15) 75 Value Destroyed (271) 271 Prototype IDs (0) 0 Alien Tech Used (0) 0 Bonus (0) 0 TOTAL SCORE: 746 Bonus ------- None Cogmind --------- Core Integrity 0/250 Matter 223/300 Energy 73/100 System Corruption 6% Temperature Cool (13) Movement Core (450) Ox8 Location -10/Mines Parts ------- > --- POWER (1) -------- (None) > --- PROPULSION (2) --- (None) > --- UTILITY (2) ------ Large Storage Unit Visual Processing Unit > --- WEAPON (2) ------- Autogun Autogun > --- INVENTORY (15) --- Improved Ion Engine Large Storage Unit Medium Matter Pod (100) Signal Interpreter ECM Suite Reaction Control System Hacking Suite Assault Rifle Assault Cannon Grenade Launcher Grenade Launcher Datajack Katana Peak State ------------ > --- POWER ------------ Light Ion Engine > --- PROPULSION ------- Light Treads Light Treads > --- UTILITY ---------- Large Storage Unit Visual Processing Unit > --- WEAPON ----------- Autogun Autogun > --- INVENTORY -------- Improved Ion Engine Large Storage Unit Medium Matter Pod Signal Interpreter ECM Suite Hacking Suite Assault Rifle Light Assault Rifle Autogun Autogun Assault Cannon Grenade Launcher Grenade Launcher Datajack [Rating: 12] Favorites ----------- Power Light Ion Engine Engine Light Ion Engine Propulsion Light Treads Treads Light Treads Utility Visual Processing Unit Storage Large Storage Unit Processor Visual Processing Unit Weapon Assault Rifle Ballistic Gun Assault Rifle Build | -11 -10 -10 ------- Run | Yrd Mat Min Slots Evolved . | . . . Power . | . . . Propulsion . | . . . Utility . | . . . Weapon . | . . . Parts Attached 18 | 7 8 3 Power 2 | 1 1 . Engine 2 | 1 1 . Core . | . . . Reactor . | . . . Propulsion 4 | 2 1 1 Treads 4 | 2 1 1 Leg . | . . . Wheel . | . . . Hover . | . . . Flight . | . . . Utility 4 | 1 3 . Device . | . . . Storage 3 | 1 2 . Processor 1 | . 1 . Hackware . | . . . Protection . | . . . Artifact . | . . . Weapon 8 | 3 3 2 Energy Gun . | . . . Energy Cannon . | . . . Ballistic Gun 8 | 3 3 2 Ballistic Cannon . | . . . Launcher . | . . . Special Weapon . | . . . Impact Weapon . | . . . Slashing Weapon . | . . . Piercing Weapon . | . . . Special Melee Weapon . | . . . Unidentified Prototypes . | . . . Parts Lost 5 | . . 5 Power 1 | . . 1 Propulsion 2 | . . 2 Utility . | . . . Weapon 2 | . . 2 Highest Loss Streak 5 | . . 5 To Critical Strikes . | . . . Average Slot Usage (%) 95 | . 94 96 Engine 13 | . 14 13 Treads 27 | . 28 25 Storage 14 | . 14 14 Processor 12 | . 11 14 Ballistic Gun 25 | . 25 27 Naked Turns . | . . . Heaviest Build 29 | 12 29 29 Greatest Support 40 | 40 40 40 Greatest Overweight (x) . | . . . Average Overweight (x) . | . . . Largest Inventory Capacity 15 | 8 15 15 Average Capacity 13 | 7 13 15 Most Carried 15 | 5 15 15 Average Carried 9 | 1 9 14 Final Capacity 15 | 8 15 15 Final Carried 14 | 2 14 13 Class Distribution -------------------- 100% | Mutant Dominant Class ---------------- Mutant | -10/Materials Mutant | -10/Mines Resources | -11 -10 -10 ----------- Run | Yrd Mat Min Matter Collected 673 | 235 412 26 Remotely . | . . . Salvage Created 408 | . 408 . Parts 31 | . 31 . Haulers Intercepted 1 | . 1 . Recyclers Shooed 1 | . 1 . Parts Field Recycled . | . . . Retrieved Matter . | . . . Parts Self-Destructed . | . . . Prevented . | . . . Kills | -11 -10 -10 ------- Run | Yrd Mat Min Combat Hostiles Destroyed 10 | . 10 . Guns 10 | . 10 . Classes Destroyed 6 | . 6 . Worker 1 | . 1 . Hauler 1 | . 1 . Operator 1 | . 1 . Watcher 2 | . 2 . Swarmer 5 | . 5 . Grunt 5 | . 5 . Best Kill Streak 4 | . 4 . Combat Bots Only 3 | . 3 . Max Kills in Single Turn 1 | . 1 . Gunslinging . | . . . Exploded . | . . . Melee . | . . . Uniques/NPCs Destroyed . | . . . Combat | -11 -10 -10 -------- Run | Yrd Mat Min Hostile Shots Fired 90 | . 60 30 Missed 30 | . 22 8 Damage Taken 1206 | . 394 812 Core 260 | . 40 220 Absorbed by Shields . | . . . Core Remaining (%) 100 | 100 . . Volleys Fired 55 | . 44 11 Largest 2 | . 2 2 Hottest 46 | . 46 46 Shots Fired 85 | . 66 19 Gun 85 | . 66 19 Cannon . | . . . Launcher . | . . . Special . | . . . Kinetic 85 | . 66 19 Thermal . | . . . Explosive . | . . . Electromagnetic . | . . . Robot Hit Streak 14 | . 14 8 Robot Miss Streak 2 | . 2 2 Penetration Max . | . . . Secondary Targets . | . . . Shots Hit Robots 59 | . 46 13 Core Hits 24 | . 22 2 Critical Kills . | . . . Critical Parts Destroyed . | . . . Critical Strikes . | . . . Melee Attacks . | . . . Impact . | . . . Slashing . | . . . Piercing . | . . . Sneak Attacks . | . . . Combat Hostiles . | . . . Follow-up Attacks . | . . . Damage Inflicted 886 | . 683 203 Guns 854 | . 651 203 Cannons . | . . . Explosions . | . . . Melee . | . . . Ramming 32 | . 32 . Kinetic 854 | . 651 203 Thermal . | . . . Explosive . | . . . Electromagnetic . | . . . Impact . | . . . Slashing . | . . . Piercing . | . . . Highest Corruption 6 | . 6 6 Average Corruption 3 | . 2 6 Corruption Purged . | . . . Corruption Blocked . | . . . Effects 24 | . 11 13 Message Errors 9 | . 5 4 Matter Fused 3 | . 2 1 Heat Flow Errors 2 | . 1 1 Energy Discharges 1 | . . 1 Parts Fused 1 | . 1 . Data Loss (minor) 7 | . 2 5 Weapon Failures 1 | . . 1 Overload Shots . | . . . Overflow Damage . | . . . Projectiles . | . . . Explosions . | . . . Melee . | . . . Knockbacks . | . . . Impact . | . . . Kinetic . | . . . Secondary . | . . . Self-Inflicted Damage . | . . . Shots . | . . . Rammed 9 | 1 8 . Targets Rammed 10 | 1 9 . Kicked . | . . . Crushed 1 | . 1 . Highest Temperature 133 | . 133 117 Average Temperature 26 | . 25 29 Received Heat Transfer 186 | . 186 . Siege Activations . | . . . Robots Corrupted . | . . . Combat Hostiles . | . . . Parts Fried . | . . . Impact Corruptions . | . . . Robots Melted . | . . . Combat Hostiles . | . . . Parts Melted . | . . . Heat Transferred . | . . . Parts Sabotaged . | . . . Parts Stolen . | . . . Parts Stripped . | . . . Power Chain Reactions . | . . . Alert | -11 -10 -10 ------- Run | Yrd Mat Min Peak Influence 122 | . 122 5 Initial 5 | . . 5 Average 40 | . 52 4 Maximum Alert Level . | . . . Low Security (%) 100 | 100 100 100 Level 1 . | . . . Level 2 . | . . . Level 3 . | . . . Level 4 . | . . . Level 5 . | . . . High Security . | . . . Max Security . | . . . Squads Dispatched 2 | . 2 . Investigation 1 | . 1 . Extermination . | . . . Reinforcement 1 | . 1 . Assault . | . . . Garrison . | . . . Intercept . | . . . Searches Triggered . | . . . Construction Impeded . | . . . Haulers Reinforced . | . . . Active Scanning Responses . | . . . Cargo Convoy Interrupts . | . . . Stealth | -11 -10 -10 --------- Run | Yrd Mat Min Distress Signals 2 | . 2 . Communications Jammed . | . . . Distress Signals . | . . . Times Spotted 21 | . 20 1 Peak Tracking Total 5 | . 5 1 Tactical Retreats . | . . . Traps | -11 -10 -10 ------- Run | Yrd Mat Min Traps Triggered 8 | . 7 1 Indirectly . | . . . Trap Hack Attempts . | . . . Triggered . | . . . Disarmed . | . . . Reprogrammed . | . . . Reused . | . . . Traps Extracted . | . . . Installed . | . . . Triggered . | . . . Machines | -11 -10 -10 ---------- Run | Yrd Mat Min Machines Disabled . | . . . Max in Single Turn . | . . . Machines Repaired . | . . . Machines Dismantled . | . . . Machines Sabotaged . | . . . Overloaded Fab Kills . | . . . Hacking | -11 -10 -10 --------- Run | Yrd Mat Min Machines Accessed 1 | . . 1 Terminals . | . . . Fabricators . | . . . Repair Stations . | . . . Recycling Units . | . . . Scanalyzers . | . . . Garrison Access . | . . . Total Hacks 1 | . . 1 Successful 1 | . . 1 Failed . | . . . Catastrophic . | . . . Database Lockouts . | . . . Manual . | . . . Terminals . | . . . Fabricators . | . . . Repair Stations . | . . . Recycling Units . | . . . Scanalyzers . | . . . Garrison Access . | . . . Terminal Hacks 1 | . . 1 Open Door 1 | . . 1 Fabricator Hacks . | . . . Repair Station Hacks . | . . . Recycling Unit Hacks . | . . . Scanalyzer . | . . . Garrison Access Hacks . | . . . Unauthorized Hacks . | . . . Terminals . | . . . Fabricators . | . . . Repair Stations . | . . . Recycling Units . | . . . Scanalyzers . | . . . Garrison Access . | . . . Data Cores Recovered . | . . . Used . | . . . Hacking Detections . | . . . Full Trace Events . | . . . Feedback Events . | . . . Feedback Blocked . | . . . Robot Schematics Acquired . | . . . Robots Built . | . . . Authchips . | . . . Time . | . . . Total Robot Build Rating . | . . . Part Schematics Acquired . | . . . Parts Built . | . . . Authchips . | . . . Time . | . . . Total Part Build Rating . | . . . Parts Repaired . | . . . Time . | . . . Parts Recycled . | . . . Recycled Matter . | . . . Retrieved Matter . | . . . Retrieved Components . | . . . Parts Scanalyzed . | . . . Part Schematics Acquired . | . . . Parts Damaged . | . . . Bothacking | -11 -10 -10 ------------ Run | Yrd Mat Min Used RIF Installer . | . . . Robots Hacked . | . . . Non-combat . | . . . Combat . | . . . Robot Hacks Applied . | . . . Relay Couplers Released . | . . . Fabnet Peak Effective % . | . . . Robots Rewired . | . . . Allies Hacked . | . . . Hacks Repelled . | . . . Allies | -11 -10 -10 -------- Run | Yrd Mat Min Total Allies . | . . . Largest Group . | . . . Highest-Rated Group . | . . . Highest-Rated Ally . | . . . Total Orders . | . . . Ally Attacks . | . . . Total Damage . | . . . Kills . | . . . Allies Corrupted . | . . . Allies Melted . | . . . Intel | -11 -10 -10 ------- Run | Yrd Mat Min Robot Analysis Total . | . . . Derelict Logs Recovered 1 | . . 1 Drone Launches . | . . . Drone Recoveries . | . . . Exploration | -11 -10 -10 ------------- Run | Yrd Mat Min Turns Passed 1774 | 108 1346 320 Spaces Moved 993 | 66 748 179 Core 12 | 12 . . Treads 981 | 54 748 179 Legs . | . . . Wheels . | . . . Hover . | . . . Flight . | . . . Fastest Speed 50 | 50 160 160 Average Speed 158 | 140 160 160 Slowest Speed 160 | 160 160 160 Overloaded Moves . | . . . Propulsion Burnouts . | . . . Robots Hopped . | . . . Cave-ins Triggered . | . . . Exploration Rate (%) 44 | 6 84 43 Regions Visited 2 Branch Regions 1 Pre-discovered Areas 1 | . . 1 Known Exits Taken . | . . . Unknown Exits Taken 2 | 1 1 . Scrap Searched 2 | . . 2 Spaces Dug . | . . . Terrain Destroyed . | . . . Melee . | . . . Projectile . | . . . AOE . | . . . Terrain Rammed . | . . . Walls Destroyed . | . . . Machines Disabled . | . . . Actions | -11 -10 -10 --------- Run | Yrd Mat Min Total 1110 | 81 831 198 Wait . | . . . Move 991 | 65 747 179 Hop . | . . . Pick Up 30 | 8 19 3 Fast Attach . | . . . Attach 14 | 6 6 2 Detach . | . . . Swap 4 | 1 2 1 Drop 6 | . 4 2 Fire 55 | . 44 11 Melee . | . . . Ram . | . . . Kick . | . . . Crush 10 | 1 9 . Escape Stasis . | . . . Rewire . | . . . Trap . | . . . Miscellaneous . | . . . Route ------- -11/Scrapyard -10/Materials (discovered 4 exits: [*Mat x2] / *Min x2) -10/Mines History --------- Turn | Location | Event 4 | -11/Scrapyard | Discovered new exit (range 15) 109 | -11/Scrapyard | Entered Materials 318 | -10/Materials | Build established: Mutant 351 | -10/Materials | Discovered new exit (range 7) 959 | -10/Materials | Discovered new exit (range 3) 1355 | -10/Materials | Discovered new exit (range 11) 1434 | -10/Materials | Discovered new exit (range 12) 1455 | -10/Materials | Entered Mines 1553 | -10/Mines | Met a Derelict who couldn't figure out how to use a Trap Extractor 1595 | -10/Mines | YI-UF0 nonchalantly dropped a Grenade Launcher on the ground 1664 | -10/Mines | Learned location of Zion (-7) 1760 | -10/Mines | Core integrity fell below 50% 1770 | -10/Mines | Core integrity fell below 20% 1775 | -10/Mines | Destroyed by YI-UF0 with YI-UF0's Doublenader Last Messages --------------- YI-UF0: "BOOM!" U-05 Engineer destroyed. YI-UF0 mumbles something. The unstable cave ceiling collapses. Lgt. Treads destroyed. System corrupted: Autogun jammed. The unstable cave ceiling collapses. Lgt. Treads destroyed. SHOP.Sys disabled. The unstable cave ceiling collapses. YI-UF0: "BLAM!" R-06 Scavenger destroyed. The unstable cave ceiling collapses. Lgt. Ion Engine destroyed. The unstable cave ceiling collapses. Autogun destroyed. System corrupted: Heat flow error (+119). The unstable cave ceiling collapses. YI-UF0 mumbles something. Autogun destroyed. Map ----- +----------------------------------------------------+ | ?# ##????????????????########## #?????? | | ??# ####?????????????# #?????? | | ??# ############### = ??????? | | ??# !% #??????????????? | | ??## ##############!!#??????????????? | | ???## ##????????????# ###????????????? | | ????# #####?????????????# #????????????? | | ???## #?????????#####???## #????????????? | | ???# ##???????## ##??# #????????????? | | ???# #???????# #### #????????????? | | ???# #???????# ## #????????????? | | ???## ## #???????# #????????????? | | ????##### ##???????# #????????????? | | ?????## ##????##### ##????????????? | | ????## ##?## #?## ##????????????? | | ##### ### #?## ## ##???????????? | | #??###?## ##??????????? | | #???????## ##?????????? | | # ## ## ## ##??######## #?????????? | | #??## #?# #?# ####### "" ### #?????????? | | ????###??# #??## ### # "### #?????????? | | ?????????# #????## # // #?# ##????????? | | ?????????# #?????# ! ####] #????????? | | ?????????#=#?????# #### #????????? | | ####%####### # ##????????? | | /* @ ###?????????? | | ############# ##???????????? | | ?????????????????##### ## ##????????????? | | ?????????????????????# ######?????????????? | | ?????????????????????# %# ?????????????????? | | ????????????????????? # ? #????????????????? | | ????????????????????# ?#????????????????? | | ????????????????????#### ?????????????????? | | ?????????????????????# # ????????????????? | | ???????????????????### ! [???????????????? | | ??????????????????## % # ??????????????? | | ?????????????????## !g # ?????????????? | | ?????????????????# *| ?????????????? | | ?????????????????# ##????????????? | | ?????????????????## # ??????????????? | | ??????????????????# ????????????????? | | ??????????????????## # ???????????????????? | | ???????????????????###### !#????????????????????? | | ?????????????????????????# ### ##??????????????? | | ?????????????????????????# #??????????????? | | ?????????????????????????# ### #??????????????? | | ?????????????????????????# #??? #??????????????? | | ?????????????????????????# #???? ##?????????????? | | ?????????????????????????# #???? #?????????????? | | ?????????????????????????# #???# ##????????????? | +----------------------------------------------------+ Best States ------------- Heat Dissipation 25 Energy Generation 10 Energy Capacity 125 Matter Stores 300 Matter Capacity 300 Sight Range 18 Terrain Scan Density 10 Evasion (%) 50 Recoil Reduction 2 Item Schematics ----------------- None Robot Schematics ------------------ None Fabricated ------------ Nothing Alien Tech Used ----------------- None Achievements -------------- None Challenges ------------ None Game ------ Seed TimingSwarmSword Manual? 0 Play Time 00:07:50 Cumulative 10.6 hours Start 2024.04.05 @ 19:52:36 End 2024.04.05 @ 19:58:41 Sessions 1 Manual Loads 0 Difficulty Rogue Special Mode None Game No. 40 Rogue 40 Adventurer 0 Explorer 0 Win Type - Total 0 Types 0/0/0/0/0/0/0/0/0 Lore% 15 Gallery% 15 Achievement% 14 Wizard Run 0 Options --------- Layout 1 ASCII 0 Keyboard 0 Movement Arrows Keybinds 0 Fullscreen 1 Font 24/Smallcaps Map View 50x35 Zoom Use 0% Tactical HUD 0 Map Filters NONE Filters NONE Steam 1 RUN: c151db2e-9d80-46f3-afef-ea83b1312268